lending/lending_fUSD_20250408
["ID","MTS","AMOUNT","RATE_DAILY","PERIOD"]
[357538322,1744131160104,-751.14,0.0003178,2]
[357538323,1744131160114,-725.42,0.0003178,2]
[357538324,1744131160123,-500.0,0.00032054,2]
[357538325,1744131160133,-500.0,0.00032054,2]
[357538326,1744131160143,-521.99,0.00032054,2]
[357538327,1744131160152,-181.46176141,0.00032054,2]
[357538328,1744131160162,-1012.34,0.00032054,2]
[357538329,1744131160171,-573.66545121,0.00032054,2]
[357538330,1744131160181,-1008.75,0.00032054,2]
[357538331,1744131160191,-572.69,0.00032054,2]
[357538332,1744131160200,-938.36,0.00032054,2]
[357538333,1744131160210,-500.0,0.00032054,2]
[357538334,1744131160221,-799.85,0.00032054,2]
[357538335,1744131160230,-500.0,0.00032054,2]
[357538336,1744131160240,-500.0,0.00032054,2]
[357538337,1744131160249,-480.94227583,0.00032054,2]
[357538338,1744131160259,-500.0,0.00032054,2]
[357538339,1744131160269,-500.0,0.00032054,2]
[357538340,1744131160279,-936.4,0.00032054,2]
[357538341,1744131160288,-500.0,0.00032054,2]
[357538342,1744131160298,-736.0,0.00032054,2]
[357538343,1744131160309,-500.0,0.00032054,2]
[357538344,1744131160319,-500.0,0.00032054,2]
[357538345,1744131160329,-500.0,0.00032054,2]
[357538346,1744131160338,-550.93,0.00032054,2]
[357538347,1744131160347,-621.25,0.00032054,2]
[357538348,1744131160358,-500.0,0.00032054,2]
[357538349,1744131160367,-500.0,0.00032054,2]
[357538350,1744131160377,-500.0,0.00032054,2]
[357538351,1744131160388,-1509.4,0.00032054,2]
[357538352,1744131160397,-768.18,0.00032054,2]
[357538353,1744131160407,-500.0,0.00032054,2]
[357538354,1744131160419,-734.29,0.00032054,2]
[357538355,1744131160429,-707.17,0.00032054,2]
[357538356,1744131160439,-509.41,0.00032054,2]
[357538357,1744131160449,-500.0,0.00032054,2]
[357538358,1744131160459,-500.0,0.00032054,2]
[357538359,1744131160469,-1220.84,0.00032054,2]
[357538360,1744131160479,-500.0,0.00032054,2]
[357538361,1744131160489,-500.0,0.00032054,2]
[357538362,1744131160499,-500.0,0.00032054,2]
[357538363,1744131160509,-545.03,0.00032054,2]
[357538364,1744131160519,-500.0,0.00032054,2]
[357538365,1744131160528,-171.57007083,0.00032054,2]
[357538366,1744131160538,-500.0,0.00032054,2]
[357538367,1744131160547,-1019.54,0.00032054,2]
[357538368,1744131160559,-1644.68,0.00032054,2]
[357538369,1744131160569,-538.21,0.00032054,2]
[357538370,1744131160578,-734.05,0.00032054,2]
[357538371,1744131160588,-1425.74,0.00032054,2]
[357538372,1744131160599,-1187.81,0.00032054,2]
[357538373,1744131160609,-500.0,0.00032054,2]
[357538374,1744131160619,-500.0,0.00032054,2]
[357538375,1744131160628,-459.58497006,0.00032054,2]
[357538376,1744131160638,-1273.1,0.00032054,2]
[357538377,1744131160648,-1048.09,0.00032054,2]
[357538378,1744131160658,-531.84,0.00032054,2]
[357538379,1744131160669,-500.0,0.00032054,2]
[357538380,1744131160678,-686.22,0.00032054,2]
[357538381,1744131160688,-643.82,0.00032054,2]
[357538382,1744131160698,-589.26,0.00032054,2]
[357538383,1744131160707,-530.29,0.00032054,2]
[357538384,1744131160717,-1739.87,0.00032054,2]
[357538385,1744131160727,-913.6,0.00032054,2]
[357538386,1744131160737,-500.0,0.00032054,2]
[357538387,1744131160747,-541.35,0.00032054,2]
[357538388,1744131160758,-437.7828516,0.00032054,2]
[357538389,1744131160768,-524.83,0.00032054,2]
[357538390,1744131160778,-853.97,0.00032054,2]
[357538391,1744131160788,-500.0,0.00032054,2]
[357538392,1744131160799,-1206.08,0.00032054,2]
[357538393,1744131160809,-240.77317434,0.00032054,2]
[357538394,1744131160819,-839.17,0.00032054,2]
[357538395,1744131160829,-500.0,0.00032054,2]
[357538396,1744131160840,-1079.35,0.00032054,2]
[357538397,1744131160852,-646.6,0.00032054,2]
[357538398,1744131160864,-500.0,0.00032054,2]
[357538399,1744131160874,-1392.68,0.00032054,2]
[357538400,1744131160884,-1013.5,0.00032054,2]
[357538401,1744131160894,-1047.48,0.00032054,2]
[357538402,1744131160904,-500.0,0.00032054,2]
[357538403,1744131160914,-1138.94,0.00032054,2]
[357538404,1744131160924,-571.65,0.00032054,2]
[357538405,1744131160934,-985.93,0.00032054,2]
[357538406,1744131160944,-500.0,0.00032054,2]
[357538407,1744131160953,-500.0,0.00032054,2]
[357538408,1744131160963,-500.0,0.00032054,2]
[357538409,1744131160973,-500.0,0.00032054,2]
[357538410,1744131161083,-893.75,0.00032054,2]
[357538411,1744131161094,-882.81,0.00032054,2]
[357538412,1744131161110,-635.65,0.00032054,2]
[357538413,1744131161120,-500.0,0.00032054,2]
[357538414,1744131161130,-554.86,0.00032054,2]
[357538415,1744131161140,-189.50063804,0.00032054,2]
[357538416,1744131161150,-1285.07,0.00032054,2]
[357538417,1744131161160,-289.20694095,0.00032054,2]
[357538418,1744131161170,-815.01,0.00032054,2]
[357538419,1744131161180,-2250.35,0.00032054,2]
[357538420,1744131161189,-828.56,0.00032054,2]
[357538421,1744131161199,-553.89,0.00032054,2]
[357538422,1744131161209,-554.97,0.00032054,2]
[357538423,1744131161218,-571.07,0.00032054,2]
[357538424,1744131161228,-500.0,0.00032054,2]
[357538425,1744131161237,-635.52,0.00032054,2]
[357538426,1744131161247,-729.33,0.00032054,2]
[357538427,1744131161256,-500.0,0.00032054,2]
[357538428,1744131161266,-1155.37,0.00032054,2]
[357538429,1744131161276,-500.0,0.00032054,2]
[357538430,1744131161286,-683.43,0.00032054,2]
[357538431,1744131161295,-659.52,0.00032054,2]
[357538432,1744131161305,-959.29,0.00032054,2]
[357538433,1744131161314,-1042.58,0.00032054,2]
[357538434,1744131161323,-500.0,0.00032054,2]
[357538435,1744131161333,-500.0,0.00032054,2]
[357538436,1744131161342,-502.74,0.00032054,2]
[357538437,1744131161354,-500.0,0.00032054,2]
[357538438,1744131161363,-500.0,0.00032054,2]
[357538439,1744131161373,-500.0,0.00032054,2]
[357538440,1744131161382,-500.0,0.00032054,2]
[357538441,1744131161392,-651.5,0.00032054,2]
[357538442,1744131161402,-594.23,0.00032054,2]
[357538443,1744131161411,-594.32,0.00032054,2]
[357538444,1744131161420,-764.58,0.00032054,2]
[357538445,1744131161429,-554.84,0.00032054,2]
[357538446,1744131161438,-1066.53,0.00032054,2]
[357538447,1744131161449,-784.39,0.00032054,2]
[357538448,1744131161459,-508.06,0.00032054,2]
[357538449,1744131161469,-513.92,0.00032054,2]
[357538450,1744131161478,-1465.9,0.00032054,2]
[357538451,1744131161488,-568.34,0.00032054,2]
[357538452,1744131161498,-583.31,0.00032054,2]
[357538453,1744131161507,-627.5,0.00032054,2]
[357538454,1744131161517,-500.0,0.00032054,2]
[357538455,1744131161526,-500.0,0.00032054,2]
[357538456,1744131161535,-500.0,0.00032054,2]
[357538457,1744131161545,-570.96,0.00032054,2]
[357538458,1744131161554,-500.0,0.00032054,2]
[357538459,1744131161564,-702.55,0.00032054,2]
[357538460,1744131161573,-500.0,0.00032054,2]
[357538461,1744131161583,-500.0,0.00032054,2]
[357538462,1744131161592,-627.68,0.00032054,2]
[357538463,1744131161605,-600.21,0.00032054,2]
[357538464,1744131161614,-717.93,0.00032054,2]
[357538465,1744131161624,-525.64,0.00032054,2]
[357538466,1744131161633,-683.46,0.00032054,2]
[357538467,1744131161643,-500.0,0.00032054,2]
[357538468,1744131161652,-537.7,0.00032054,2]
[357538469,1744131161661,-235.42236245,0.00032054,2]
[357538470,1744131161671,-1354.7,0.00032054,2]
[357538471,1744131161680,-748.01,0.00032054,2]
[357538472,1744131161689,-500.0,0.00032054,2]
[357538473,1744131161698,-1010.61,0.00032054,2]
[357538474,1744131161707,-564.61,0.00032054,2]
[357538475,1744131161717,-500.0,0.00032054,2]
[357538476,1744131161727,-500.0,0.00032054,2]
[357538477,1744131161736,-790.51,0.00032054,2]
[357538478,1744131161746,-500.0,0.00032054,2]
[357538479,1744131161755,-1476.66,0.00032054,2]
[357538480,1744131161765,-500.0,0.00032054,2]
[357538481,1744131161775,-655.26,0.00032054,2]
[357538482,1744131161784,-737.15,0.00032054,2]
[357538483,1744131161793,-500.0,0.00032054,2]
[357538484,1744131161803,-539.63,0.00032054,2]
[357538485,1744131161812,-235.57925831,0.00032054,2]
[357538486,1744131161822,-500.0,0.00032054,2]
[357538487,1744131161832,-677.2,0.00032054,2]
[357538488,1744131161841,-703.81,0.00032054,2]
[357538489,1744131161853,-704.21,0.00032054,2]
[357538490,1744131161863,-959.99,0.00032054,2]
[357538491,1744131161874,-641.96,0.00032054,2]
[357538492,1744131161884,-505.48,0.00032054,2]
[357538493,1744131161893,-932.66,0.00032054,2]
[357538494,1744131161903,-812.56,0.00032054,2]
[357538495,1744131161912,-1465.75,0.00032054,2]
[357538496,1744131161922,-580.15,0.00032054,2]
[357538497,1744131161931,-888.6,0.00032054,2]
[357538498,1744131161940,-545.23,0.00032054,2]
[357538499,1744131161950,-889.0,0.00032054,2]
[357538500,1744131161959,-2260.02,0.00032054,2]
[357538501,1744131161969,-794.37,0.00032054,2]
[357538502,1744131161978,-382.98118644,0.00032054,2]
[357538503,1744131161987,-613.35,0.00032054,2]
[357538504,1744131161997,-567.81,0.00032054,2]
[357538505,1744131162006,-500.0,0.00032054,2]
[357538506,1744131162016,-808.98,0.00032054,2]
[357538507,1744131162025,-845.46,0.00032054,2]
[357538508,1744131162034,-593.3,0.00032054,2]
[357538509,1744131162044,-500.0,0.00032054,2]
[357538510,1744131162053,-581.16,0.00032054,2]
[357538511,1744131162062,-500.0,0.00032054,2]
[357538512,1744131162071,-878.06,0.00032054,2]
[357538513,1744131162081,-500.0,0.00032054,2]
[357538514,1744131162090,-1056.72,0.00032054,2]
[357538515,1744131162102,-500.0,0.00032054,2]
[357538516,1744131162115,-1037.85,0.00032054,2]
[357538517,1744131162124,-624.4,0.00032054,2]
[357538518,1744131162133,-500.0,0.00032054,2]
[357538519,1744131162143,-547.36,0.00032054,2]
[357538520,1744131162153,-500.0,0.00032054,2]
[357538521,1744131162162,-1221.73,0.00032054,2]
[357538522,1744131162171,-541.77,0.00032054,2]
[357538523,1744131162180,-1049.21,0.00032054,2]
[357538524,1744131162191,-833.03,0.00032054,2]
[357538525,1744131162200,-500.0,0.00032054,2]
[357538526,1744131162208,-947.72,0.00032054,2]
[357538527,1744131162218,-2154.22,0.00032054,2]
[357538528,1744131162227,-915.59,0.00032054,2]
[357538529,1744131162237,-500.0,0.00032054,2]
[357538530,1744131162246,-715.09,0.00032054,2]
[357538531,1744131162256,-806.29,0.00032054,2]
[357538532,1744131162266,-681.07,0.00032054,2]
[357538533,1744131162275,-500.0,0.00032054,2]
[357538534,1744131162284,-596.17,0.00032054,2]
[357538535,1744131162294,-548.02570769,0.00032054,2]
[357538536,1744131162303,-623.11,0.00032054,2]
[357538537,1744131162313,-643.21,0.00032054,2]
[357538538,1744131162322,-895.87,0.00032054,2]
[357538539,1744131162332,-591.63,0.00032054,2]
[357538540,1744131162341,-840.88,0.00032054,2]
[357538541,1744131162351,-469.41902913,0.00032054,2]
[357538542,1744131162360,-915.65,0.00032054,2]
[357538543,1744131162370,-2601.54,0.00032054,2]
[357538544,1744131162379,-6189.26,0.00032054,2]
[357538545,1744131162389,-1470.66,0.00032054,2]
[357538546,1744131162398,-1161.33,0.00032054,2]
[357538547,1744131162408,-500.0,0.00032054,2]
[357538548,1744131162417,-557.06,0.00032054,2]
[357538549,1744131162427,-500.0,0.00032054,2]
[357538550,1744131162436,-748.03,0.00032054,2]
[357538551,1744131162446,-1784.68,0.00032054,2]
[357538552,1744131162455,-736.96,0.00032054,2]
[357538553,1744131162464,-523.99513622,0.00032054,2]
[357538554,1744131162473,-802.54,0.00032054,2]
[357538555,1744131162484,-500.0,0.00032054,2]
[357538556,1744131162494,-528.16,0.00032054,2]
[357538557,1744131162503,-1759.78,0.00032054,2]
[357538558,1744131162512,-880.64,0.00032054,2]
[357538559,1744131162522,-878.89,0.00032054,2]
[357538560,1744131162531,-939.58,0.00032054,2]
[357538561,1744131162541,-735.03,0.00032054,2]
[357538562,1744131162550,-524.35,0.00032054,2]
[357538563,1744131162559,-500.0,0.00032054,2]
[357538564,1744131162569,-1127.76,0.00032054,2]
[357538565,1744131162578,-151.0,0.00032054,7]
[357538566,1744131162587,-151.0,0.00032054,7]
[357538567,1744131162597,-521.07794932,0.00032054,2]
[357538568,1744131162608,-151.0,0.00032054,7]
[357538569,1744131162617,-151.0,0.00032054,7]
[357538570,1744131162627,-151.0,0.00032054,7]
[357538571,1744131162636,-151.0,0.00032054,7]
[357538572,1744131162645,-1017.57,0.00032054,2]
[357538573,1744131162655,-151.0,0.00032054,7]
[357538574,1744131162665,-6178.64,0.00032054,2]
[357538575,1744131162674,-396.28,0.00032054,2]
[357538576,1744131162683,-513.55,0.00032054,2]
[357538577,1744131162692,-950.17,0.00032054,2]
[357538578,1744131162701,-1089.76,0.00032054,2]
[357538579,1744131162710,-549.65,0.00032054,2]
[357538580,1744131162720,-578.6,0.00032054,2]
[357538581,1744131162729,-841.6,0.00032054,2]
[357538582,1744131162738,-1940.65,0.00032054,2]
[357538583,1744131162748,-3839.98,0.00032054,2]
[357538584,1744131162757,-671.05,0.00032054,2]
[357538585,1744131162766,-500.0,0.00032054,2]
[357538586,1744131162775,-558.9,0.00032054,2]
[357538587,1744131162784,-151.0,0.00032054,7]
[357538588,1744131162794,-1739.52,0.00032054,2]
[357538589,1744131162803,-188.933392,0.00032054,7]
[357538590,1744131162813,-500.0,0.00032054,2]
[357538591,1744131162822,-539.60540381,0.00032054,2]
[357538592,1744131162831,-853.97,0.00032054,2]
[357538593,1744131162840,-727.58,0.00032054,2]
[357538594,1744131162849,-734.69,0.00032054,2]
[357538595,1744131162860,-1008.41,0.00032054,2]
[357538596,1744131162870,-990.1,0.00032054,2]
[357538597,1744131162879,-737.46,0.00032054,2]
[357538598,1744131162888,-880.15,0.00032054,2]
[357538599,1744131162898,-872.33,0.00032054,2]
[357538600,1744131162907,-825.98,0.00032054,2]
[357538601,1744131162916,-500.0,0.00032054,2]
[357538602,1744131162926,-506.13,0.00032054,2]
[357538603,1744131162935,-2261.1,0.00032054,2]
[357538604,1744131162944,-2351.91,0.00032054,2]
[357538605,1744131162953,-1830.5,0.00032054,2]
[357538606,1744131162963,-500.0,0.00032054,2]
[357538607,1744131162972,-727.88,0.00032054,2]
[357538608,1744131162981,-1859.52,0.00032054,2]
[357538609,1744131162990,-665.51,0.00032054,2]
[357538610,1744131162998,-986.07,0.00032054,2]
[357538611,1744131163008,-593.3,0.00032054,2]
[357538612,1744131163018,-186.14976757,0.00032054,2]
[357538613,1744131163027,-1483.68,0.00032054,2]
[357538614,1744131163036,-4169.04,0.00032054,2]
[357538615,1744131163045,-1258.57,0.00032054,2]
[357538616,1744131163055,-524.58,0.00032054,2]
[357538617,1744131163065,-646.63,0.00032054,2]
[357538618,1744131163074,-808.53,0.00032054,2]
[357538619,1744131163083,-1146.51,0.00032054,2]
[357538620,1744131163093,-535.91,0.00032054,2]
[357538621,1744131163108,-24279.06,0.00032054,2]
[357538622,1744131163118,-500.0,0.00032054,2]
[357538623,1744131163127,-330.65838011,0.00032054,2]
[357538624,1744131163136,-500.0,0.00032054,2]
[357538625,1744131163147,-632.96,0.00032054,2]
[357538626,1744131163156,-1842.22,0.00032054,2]
[357538627,1744131163166,-892.34,0.00032054,2]
[357538628,1744131163176,-575.39,0.00032054,2]
[357538629,1744131163185,-735.43,0.00032054,2]
[357538630,1744131163195,-921.97,0.00032054,2]
[357538631,1744131163205,-1216.92,0.00032054,2]
[357538632,1744131163215,-589.43,0.00032054,2]
[357538633,1744131163224,-500.0,0.00032054,2]
[357538634,1744131163234,-500.0,0.00032054,2]
[357538635,1744131163243,-646.32,0.00032054,2]
[357538636,1744131163253,-1299.3,0.00032054,2]
[357538637,1744131163262,-616.22,0.00032054,2]
[357538638,1744131163272,-4391.56,0.00032054,2]
[357538639,1744131163282,-735.03,0.00032054,2]
[357538640,1744131163292,-573.44,0.00032054,2]
[357538641,1744131163302,-830.9,0.00032054,2]
[357538642,1744131163311,-542.44,0.00032054,2]
[357538643,1744131163321,-1398.27,0.00032054,2]
[357538644,1744131163331,-763.62,0.00032054,2]
[357538645,1744131163341,-500.0,0.00032054,2]
[357538646,1744131163351,-1043.21,0.00032054,2]
[357538647,1744131163361,-745.57,0.00032054,2]
[357538648,1744131163371,-500.0,0.00032054,2]
[357538649,1744131163380,-812.8,0.00032054,2]
[357538650,1744131163390,-836.32,0.00032054,2]
[357538651,1744131163401,-813.0,0.00032054,2]
[357538652,1744131163411,-500.0,0.00032054,2]
[357538653,1744131163421,-441.31926733,0.00032054,2]
[357538654,1744131163431,-684.15,0.00032054,2]
[357538655,1744131163441,-1564.46,0.00032054,2]
[357538656,1744131163450,-984.76,0.00032054,2]
[357538657,1744131163460,-615.97,0.00032054,2]
[357538658,1744131163470,-630.49,0.00032054,2]
[357538659,1744131163480,-780.29,0.00032054,2]
[357538660,1744131163489,-794.86,0.00032054,2]
[357538661,1744131163499,-918.03,0.00032054,2]
[357538662,1744131163508,-6319.24,0.00032054,2]
[357538663,1744131163519,-929.59,0.00032054,2]
[357538664,1744131163528,-1679.19,0.00032054,2]
[357538665,1744131163537,-500.0,0.00032054,2]
[357538666,1744131163547,-660.39,0.00032054,2]
[357538667,1744131163556,-500.0,0.00032054,2]
[357538668,1744131163566,-639.27,0.00032054,2]
[357538669,1744131163575,-751.14,0.00032054,2]
[357538670,1744131163584,-725.42,0.00032054,2]
[357538671,1744131163594,-377.39,0.00032235,2]
[357538672,1744131163604,-500.0,0.00032328,2]
[357538673,1744131163614,-500.0,0.00032328,2]
[357538674,1744131163623,-521.99,0.00032328,2]
[357538675,1744131163632,-1012.34,0.00032328,2]
[357538676,1744131163642,-1008.75,0.00032328,2]
[357538677,1744131163651,-572.69,0.00032328,2]
[357538678,1744131163661,-938.36,0.00032328,2]
[357538679,1744131163670,-500.0,0.00032328,2]
[357538680,1744131163680,-799.85,0.00032328,2]
[357538681,1744131163690,-500.0,0.00032328,2]
[357538682,1744131163699,-500.0,0.00032328,2]
[357538683,1744131163709,-500.0,0.00032328,2]
[357538684,1744131163718,-500.0,0.00032328,2]
[357538685,1744131163727,-936.4,0.00032328,2]
[357538686,1744131163736,-500.0,0.00032328,2]
[357538687,1744131163746,-736.0,0.00032328,2]
[357538688,1744131163755,-500.0,0.00032328,2]
[357538689,1744131163764,-156.17642701,0.00032328,2]
[357538690,1744131163773,-500.0,0.00032328,2]
[357538691,1744131163782,-550.93,0.00032328,2]
[357538692,1744131163791,-621.25,0.00032328,2]
[357538693,1744131163800,-500.0,0.00032328,2]
[357538694,1744131163809,-500.0,0.00032328,2]
[357538695,1744131163819,-500.0,0.00032328,2]
[357538696,1744131163828,-1509.4,0.00032328,2]
[357538697,1744131163837,-768.18,0.00032328,2]
[357538698,1744131163846,-500.0,0.00032328,2]
[357538699,1744131163857,-734.29,0.00032328,2]
[357538700,1744131163866,-707.17,0.00032328,2]
[357538701,1744131163875,-509.41,0.00032328,2]
[357538702,1744131163885,-500.0,0.00032328,2]
[357538703,1744131163894,-228.7287771,0.00032328,2]
[357538704,1744131163903,-1220.84,0.00032328,2]
[357538705,1744131163913,-500.0,0.00032328,2]
[357538706,1744131163922,-500.0,0.00032328,2]
[357538707,1744131163932,-500.0,0.00032328,2]
[357538708,1744131163941,-545.03,0.00032328,2]
[357538709,1744131163950,-500.0,0.00032328,2]
[357538710,1744131163960,-500.0,0.00032328,2]
[357538711,1744131163970,-1019.54,0.00032328,2]
[357538712,1744131163980,-538.21,0.00032328,2]
[357538713,1744131163990,-1644.68,0.00032328,2]
[357538714,1744131163999,-734.05,0.00032328,2]
[357538715,1744131164009,-1425.74,0.00032328,2]
[357538716,1744131164018,-1187.81,0.00032328,2]
[357538717,1744131164028,-500.0,0.00032328,2]
[357538718,1744131164037,-528.06481465,0.00032328,2]
[357538719,1744131164048,-1273.1,0.00032328,2]
[357538720,1744131164058,-1048.09,0.00032328,2]
[357538721,1744131164067,-531.84,0.00032328,2]
[357538722,1744131164078,-500.0,0.00032328,2]
[357538723,1744131164087,-686.22,0.00032328,2]
[357538724,1744131164098,-643.82,0.00032328,2]
[357538725,1744131164111,-589.26,0.00032328,2]
[357538726,1744131164122,-530.29,0.00032328,2]
[357538727,1744131164131,-1739.87,0.00032328,2]
[357538728,1744131164141,-913.6,0.00032328,2]
[357538729,1744131164151,-500.0,0.00032328,2]
[357538730,1744131164161,-541.35,0.00032328,2]
[357538731,1744131164171,-524.83,0.00032328,2]
[357538732,1744131164182,-853.97,0.00032328,2]
[357538733,1744131164192,-500.0,0.00032328,2]
[357538734,1744131164202,-1206.08,0.00032328,2]
[357538735,1744131164212,-839.17,0.00032328,2]
[357538736,1744131164222,-500.0,0.00032328,2]
[357538737,1744131164232,-1079.35,0.00032328,2]
[357538738,1744131164241,-646.6,0.00032328,2]
[357538739,1744131164251,-500.0,0.00032328,2]
[357538740,1744131164261,-1392.68,0.00032328,2]
[357538741,1744131164271,-1013.5,0.00032328,2]
[357538742,1744131164280,-1047.48,0.00032328,2]
[357538743,1744131164290,-500.0,0.00032328,2]
[357538744,1744131164300,-1138.94,0.00032328,2]
[357538745,1744131164310,-571.65,0.00032328,2]
[357538746,1744131164319,-985.93,0.00032328,2]
[357538747,1744131164330,-500.0,0.00032328,2]
[357538748,1744131164340,-500.0,0.00032328,2]
[357538749,1744131164349,-500.0,0.00032328,2]
[357538750,1744131164361,-500.0,0.00032328,2]
[357538751,1744131164371,-893.75,0.00032328,2]
[357538752,1744131164380,-882.81,0.00032328,2]
[357538753,1744131164391,-635.65,0.00032328,2]
[357538754,1744131164400,-474.92778246,0.00032328,2]
[357538755,1744131164411,-554.86,0.00032328,2]
[357538756,1744131164422,-1285.07,0.00032328,2]
[357538757,1744131164431,-815.01,0.00032328,2]
[357538758,1744131164441,-2250.35,0.00032328,2]
[357538759,1744131164451,-828.56,0.00032328,2]
[357538760,1744131164461,-553.89,0.00032328,2]
[357538761,1744131164472,-554.97,0.00032328,2]
[357538762,1744131164481,-571.07,0.00032328,2]
[357538763,1744131164492,-360.8020977,0.00032328,2]
[357538764,1744131164501,-635.52,0.00032328,2]
[357538765,1744131164511,-729.33,0.00032328,2]
[357538766,1744131164521,-243.05471044,0.00032328,2]
[357538767,1744131164531,-1155.37,0.00032328,2]
[357538768,1744131164541,-233.62738353,0.00032328,2]
[357538769,1744131164550,-683.43,0.00032328,2]
[357538770,1744131164560,-659.52,0.00032328,2]
[357538771,1744131164570,-959.29,0.00032328,2]
[357538772,1744131164581,-1042.58,0.00032328,2]
[357538773,1744131164590,-500.0,0.00032328,2]
[357538774,1744131164599,-500.0,0.00032328,2]
[357538775,1744131164610,-502.74,0.00032328,2]
[357538776,1744131164620,-500.0,0.00032328,2]
[357538777,1744131164630,-500.0,0.00032328,2]
[357538778,1744131164640,-500.0,0.00032328,2]
[357538779,1744131164650,-500.0,0.00032328,2]
[357538780,1744131164660,-651.5,0.00032328,2]
[357538781,1744131164670,-594.23,0.00032328,2]
[357538782,1744131164680,-594.32,0.00032328,2]
[357538783,1744131164690,-764.58,0.00032328,2]
[357538784,1744131164700,-554.84,0.00032328,2]
[357538785,1744131164710,-1066.53,0.00032328,2]
[357538786,1744131164720,-784.39,0.00032328,2]
[357538787,1744131164730,-508.06,0.00032328,2]
[357538788,1744131164740,-513.92,0.00032328,2]
[357538789,1744131164750,-1465.9,0.00032328,2]
[357538790,1744131164759,-568.34,0.00032328,2]
[357538791,1744131164769,-583.31,0.00032328,2]
[357538792,1744131164779,-627.5,0.00032328,2]
[357538793,1744131164789,-500.0,0.00032328,2]
[357538794,1744131164798,-500.0,0.00032328,2]
[357538795,1744131164808,-500.0,0.00032328,2]
[357538796,1744131164818,-570.96,0.00032328,2]
[357538797,1744131164828,-500.0,0.00032328,2]
[357538798,1744131164838,-702.55,0.00032328,2]
[357538799,1744131164848,-599.6922857,0.00032328,2]
[357538800,1744131164858,-500.0,0.00032328,2]
[357538801,1744131164869,-627.68,0.00032328,2]
[357538802,1744131164879,-600.21,0.00032328,2]
[357538803,1744131164889,-717.93,0.00032328,2]
[357538804,1744131164899,-525.64,0.00032328,2]
[357538805,1744131164909,-683.46,0.00032328,2]
[357538806,1744131164919,-500.0,0.00032328,2]
[357538807,1744131164929,-537.7,0.00032328,2]
[357538808,1744131164938,-1354.7,0.00032328,2]
[357538809,1744131164948,-748.01,0.00032328,2]
[357538810,1744131164958,-461.37404403,0.00032328,2]
[357538811,1744131164968,-1010.61,0.00032328,2]
[357538812,1744131164979,-500.0,0.00032328,2]
[357538813,1744131164989,-564.61,0.00032328,2]
[357538814,1744131165000,-500.0,0.00032328,2]
[357538815,1744131165011,-790.51,0.00032328,2]
[357538816,1744131165021,-500.0,0.00032328,2]
[357538817,1744131165031,-1476.66,0.00032328,2]
[357538818,1744131165041,-500.0,0.00032328,2]
[357538819,1744131165052,-655.26,0.00032328,2]
[357538820,1744131165062,-737.15,0.00032328,2]
[357538821,1744131165072,-500.0,0.00032328,2]